bitfinex/quotes_ETHUSD_20260302
["timestamp","ask_amount","ask_price","bid_price","bid_amount"]
[1772459733495,3.2383108,1925.6,1925.3,0.0011]
[1772459733747,1.63336018,1925.7,1925.3,0.0011]
[1772459733909,0.63011917,1925.8,1925.3,0.0011]
[1772459733910,2.93153004,1925.8,1925.3,0.0011]
[1772459734494,1.63336018,1925.7,1925.3,0.0011]
[1772459734699,1.63336018,1925.7,1925.4,0.0011]
[1772459734927,1.63436018,1925.7,1925.4,0.0011]
[1772459736341,1.29829663,1925.6,1925.4,0.0011]
[1772459736500,2.93263703,1925.7,1925.4,0.0011]
[1772459738133,1.63336018,1925.5,1925.3,0.0011]
[1772459738626,2.93173382,1925.5,1925.3,0.0011]
[1772459738834,1.63336018,1925.5,1925.3,0.0011]
[1772459740238,1.946,1925.6,1925.3,0.0011]
[1772459741515,1.946,1925.6,1925.3,1.63150602]
[1772459741715,0.001,1925.7,1925.3,0.0011]
[1772459742037,1.63436018,1925.7,1925.3,0.0011]
[1772459744525,1.949,1926.2,1925.4,1.63040602]
[1772459744704,1.949,1926.2,1925.6,1.63040602]
[1772459745636,1.949,1926.2,1925.7,2.92863523]
[1772459747246,0.001,1925.6,1925.4,1.29952852]
[1772459747408,1.63336018,1926.0,1925.4,1.29952852]
[1772459747829,1.29809439,1925.9,1925.4,1.29952852]
[1772459748137,1.60273448,1925.8,1925.4,0.0011]
[1772459750944,1.29822921,1925.7,1925.4,0.0011]
[1772459751115,2.90096369,1925.7,1925.4,0.0011]
[1772459751712,3.2461642,1925.8,1925.4,0.0011]
[1772459752313,1.60273448,1925.9,1925.4,0.0011]
[1772459752512,4.84976096,1926.1,1925.4,1.54738147]
[1772459752715,4.84976096,1926.1,1925.4,0.0011]
[1772459752716,1.60273448,1926.0,1925.4,0.0011]
[1772459753040,1.29822921,1925.7,1925.4,0.0011]
[1772459754843,1.60273448,1925.8,1925.4,0.0011]
[1772459755146,1.29812286,1925.9,1925.4,0.0011]
[1772459755445,2.90079575,1926.0,1925.4,0.0011]
[1772459756437,1.29806127,1926.0,1925.5,1.54628147]
[1772459756618,3.24699761,1926.1,1925.5,1.54628147]
[1772459756824,1.60273448,1926.0,1925.4,0.0011]
[1772459757517,1.29809439,1925.9,1925.4,0.0011]
[1772459757720,1.60273448,1925.9,1925.4,0.0011]
[1772459758556,2.90073642,1926.1,1925.4,0.0011]
[1772459759020,2.90073642,1926.1,1925.5,0.0011]
[1772459759226,0.001,1925.9,1925.5,0.0011]
[1772459760251,0.001,1925.9,1925.5,1.54738147]
[1772459760954,3.70374929,1925.9,1925.5,0.0011]
[1772459761253,0.001,1925.9,1925.5,1.54738147]
[1772459761453,5.19212834,1926.4,1925.6,1.54628147]
[1772459761454,0.001,1926.4,1925.6,1.54628147]
[1772459761626,0.001,1926.4,1926.0,1.54628147]
[1772459763751,0.001,1926.4,1926.1,2.84424107]
[1772459764780,1.60373448,1926.4,1925.8,1.29809896]
[1772459765558,1.60373448,1926.4,1925.8,2.84438043]
[1772459765854,2.90152515,1926.4,1925.8,2.84438043]
[1772459766157,0.001,1926.4,1925.9,1.54628147]
[1772459768576,1.60373448,1926.4,1925.7,1.29822397]
[1772459768862,0.001,1926.4,1925.8,1.54628147]
[1772459771166,0.001,1926.4,1925.9,2.84437586]
[1772459771338,0.001,1926.3,1925.9,2.84437586]
[1772459773038,0.001,1926.3,1925.8,2.8455312]
[1772459773258,1.60273448,1926.6,1926.1,1.54628147]
[1772459773445,4.84922663,1926.8,1926.1,1.54628147]
[1772459773643,3.55173448,1926.8,1926.1,1.54628147]
[1772459773869,1.60273448,1926.8,1926.1,1.54628147]
[1772459774070,2.90024647,1926.8,1926.1,1.54628147]
[1772459774269,2.90024647,1926.8,1926.1,3.08328147]
[1772459774790,1.49814237,1927.0,1926.2,1.5081132]
[1772459774954,1.49660351,1926.9,1926.2,1.5081132]
[1772459775148,1.49660351,1926.7,1926.1,1.5081132]
[1772459776263,1.49660351,1926.7,1926.0,1.29802699]
[1772459776958,1.49660351,1926.7,1926.0,2.80614019]
[1772459777358,1.49660351,1926.7,1926.1,1.48943106]
[1772459777562,5.19105517,1927.0,1926.1,1.48943106]
[1772459777563,1.29889639,1927.0,1926.1,1.48943106]
[1772459777870,2.75100721,1927.0,1926.1,1.48943106]
[1772459778171,1.45211082,1926.9,1926.1,1.48943106]
[1772459778755,0.00153886,1927.0,1926.1,1.48943106]
[1772459778957,0.00153886,1927.0,1926.3,1.48943106]
[1772459779264,0.00153886,1927.0,1926.5,1.29769011]
[1772459779466,0.00153886,1927.0,1926.5,2.78712117]
[1772459779778,0.00153886,1927.0,1926.6,1.48943106]
[1772459781498,0.00153886,1927.0,1926.4,2.78713514]
[1772459781794,1.45364968,1927.0,1926.4,2.78713514]
[1772459782773,1.45364968,1927.0,1926.3,1.29782484]
[1772459782996,1.45364968,1927.0,1926.4,1.539]
[1772459783378,0.00153886,1927.0,1926.5,2.78712117]
[1772459784406,0.001,1926.9,1926.5,2.78712117]
[1772459784981,0.001,1926.9,1926.4,6.72976044]
[1772459784982,0.001,1926.9,1926.4,1.48943106]
[1772459785488,0.001,1926.9,1926.5,1.29769011]
[1772459785682,0.001,1926.9,1926.5,2.78712117]
[1772459786210,0.001,1926.9,1926.6,1.48943106]
[1772459786499,0.001,1926.9,1926.5,1.29769011]
[1772459786668,0.001,1926.9,1926.5,2.78712117]
[1772459787074,0.001,1926.9,1926.4,2.83970811]
[1772459787574,0.001,1926.9,1926.4,4.32913917]
[1772459787777,0.001,1926.9,1926.5,1.90884516]
[1772459788096,0.001,1926.9,1926.6,1.48943106]
[1772459788612,0.001,1927.2,1926.8,1.48943106]
[1772459788986,0.001,1927.2,1926.8,3.03243106]
[1772459789374,0.001,1927.2,1926.9,1.48943106]
[1772459789575,0.001,1927.2,1927.0,1.48943106]
[1772459789805,0.001,1927.2,1927.1,1.29728607]
[1772459790184,0.001,1927.6,1927.1,3.20613123]
[1772459790390,1.45311082,1927.6,1927.1,1.29728607]
[1772459790885,1.45211082,1927.5,1926.7,5.190069]
[1772459791083,1.45211082,1927.5,1926.7,2.78698646]
[1772459791511,1.45211082,1927.5,1926.8,1.48943106]
[1772459792207,1.29706598,1927.5,1926.9,2.78685178]
[1772459792380,1.45211082,1927.5,1926.9,2.78685178]
[1772459793121,1.45211082,1927.5,1926.9,1.29742072]
[1772459793700,1.45211082,1927.5,1926.9,2.78685178]
[1772459794410,1.29797727,1927.6,1927.0,1.48943106]
[1772459794582,2.75008809,1927.6,1927.0,1.48943106]
[1772459796409,1.45211082,1927.5,1926.9,1.29738156]
[1772459796803,1.45211082,1927.5,1926.9,2.78681262]
[1772459797541,0.001,1927.6,1927.1,1.49053106]
[1772459797709,0.001,1927.5,1927.1,1.49053106]
[1772459798662,0.001,1927.6,1927.3,1.48943106]
[1772459800616,0.001,1927.6,1927.4,1.29708415]
[1772459801314,0.00153886,1928.0,1927.5,1.48943106]
[1772459801771,1.45211082,1928.3,1927.6,1.48943106]
[1772459801966,1.45211082,1928.3,1927.4,2.78651521]
[1772459803161,1.45211082,1928.1,1927.4,2.78651521]
[1772459803467,1.45211082,1928.1,1927.5,1.48943106]
[1772459805265,2.74862401,1928.3,1927.6,2.78638063]
[1772459805459,1.45211082,1928.2,1927.6,2.78638063]
[1772459805659,1.45211082,1928.2,1927.6,1.29694957]
[1772459806467,1.45211082,1928.2,1927.6,2.78638063]
[1772459806670,1.45211082,1928.2,1927.7,1.48943106]
[1772459806837,1.45211082,1928.3,1927.5,1.29696503]
[1772459807037,1.45211082,1928.3,1927.5,2.78639609]
[1772459807674,1.35006251,1928.1,1927.5,2.78639609]
[1772459808768,1.35006251,1928.1,1927.5,1.29696503]
[1772459809274,1.35006251,1928.1,1927.4,2.70379285]
[1772459809773,1.35006251,1928.1,1927.4,1.40675851]
[1772459809987,1.35006251,1927.9,1927.4,2.70379733]
[1772459810193,1.35006251,1928.1,1927.4,1.29703882]
[1772459810343,1.922,1928.4,1927.4,1.29703882]
[1772459810344,1.35006251,1928.3,1927.7,1.40675851]
[1772459810544,1.35006251,1928.3,1927.4,1.29703882]
[1772459810545,0.001,1928.1,1927.5,1.40675851]
[1772459811394,0.001,1928.4,1927.5,1.40675851]
[1772459811973,0.001,1928.4,1927.7,1.40675851]
[1772459812593,0.001,1928.4,1927.6,1.29694957]
[1772459812594,1.35106251,1928.4,1927.6,1.29694957]
[1772459813874,1.29647876,1928.3,1927.4,1.29708415]
[1772459814176,1.35006251,1928.2,1927.4,1.29708415]
[1772459814364,1.35006251,1928.2,1927.1,2.95385851]
[1772459814571,1.35006251,1928.2,1927.2,1.29720403]
[1772459814879,1.35006251,1928.2,1927.1,1.29837108]
[1772459816285,1.35006251,1928.0,1927.1,1.29837108]
[1772459816488,1.35006251,1927.8,1927.1,1.29837108]
[1772459818936,1.35006251,1927.6,1925.8,0.0011]
[1772459819203,1.35006251,1926.9,1926.1,5.19062391]
[1772459819408,2.93202471,1927.3,1926.1,5.19062391]
[1772459819409,3.26406251,1926.8,1926.1,5.19062391]
[1772459819571,4.24683132,1926.8,1926.1,5.19062391]
[1772459819773,3.26306251,1926.8,1926.1,5.19062391]
[1772459819996,1.35006251,1926.7,1926.1,5.19062391]
[1772459820699,1.35006251,1926.9,1926.1,5.19062391]
[1772459821001,1.35006251,1926.7,1926.1,5.19062391]
[1772459822098,1.35006251,1926.7,1926.1,6.48858102]
[1772459822299,1.35006251,1926.7,1926.2,0.0011]
[1772459822507,1.29721876,1927.2,1926.2,4.33988322]
[1772459822674,1.29714785,1927.4,1926.4,1.40675851]
[1772459822875,1.29714785,1927.4,1926.5,1.29769011]
[1772459823085,1.29714785,1927.4,1926.6,1.40675851]
[1772459823576,1.29714785,1927.4,1926.5,2.84469011]
[1772459823577,1.912,1927.5,1926.8,1.40675851]
[1772459823807,1.35006251,1927.8,1926.8,1.40675851]
[1772459823808,2.64694063,1927.8,1926.8,1.40675851]
[1772459823974,2.64694063,1927.8,1926.9,6.59738242]
[1772459824178,2.64694063,1927.8,1926.9,1.40675851]
[1772459825137,1.35006251,1927.7,1927.0,5.19062391]
[1772459827013,1.35006251,1927.5,1927.0,5.19062391]
[1772459827217,1.35006251,1927.5,1926.6,1.29756875]
[1772459829523,1.35006251,1927.4,1926.6,2.70432726]
[1772459830022,1.35006251,1927.4,1926.7,1.40675851]
[1772459830223,1.29706289,1927.5,1926.7,1.40675851]
[1772459830821,2.6471254,1927.5,1926.7,1.40675851]
[1772459831036,1.35006251,1927.5,1926.7,1.40675851]
[1772459831193,2.64708827,1927.5,1926.7,1.40675851]
[1772459831392,1.35006251,1927.5,1926.8,1.29748806]
[1772459831714,1.35006251,1927.4,1926.8,1.29748806]
[1772459833853,1.29701955,1927.5,1926.8,1.29748806]
[1772459834245,3.10961596,1927.8,1926.9,1.72620459]
[1772459834763,1.81374912,1927.6,1926.9,1.72620459]
[1772459835252,1.81374912,1927.6,1926.9,3.27120459]
[1772459835457,1.81374912,1927.6,1926.8,0.0011]
[1772459835825,1.81274912,1927.4,1926.8,0.0011]
[1772459838079,1.29715145,1927.3,1926.8,0.0011]
[1772459838653,3.057322,1927.3,1926.8,0.0011]
[1772459839775,1.76017055,1927.2,1926.8,0.0011]
[1772459841880,1.76017055,1927.4,1926.8,0.0011]
[1772459844592,1.29715145,1927.3,1926.8,0.0011]
[1772459844761,1.76017055,1927.3,1926.8,0.0011]
[1772459845657,1.29711275,1927.4,1926.8,1.70536167]
[1772459846054,3.0572833,1927.4,1926.8,1.70536167]
[1772459847089,3.0572833,1927.4,1926.8,3.00284123]
[1772459847295,3.0572833,1927.4,1926.8,0.0011]
[1772459847296,1.76017055,1927.3,1926.8,0.0011]
[1772459847534,1.76017055,1927.3,1926.9,0.0011]
[1772459847690,1.76117055,1927.3,1926.9,0.0011]
[1772459847875,1.76117055,1927.3,1926.8,0.0011]
[1772459849563,1.29721876,1927.2,1926.8,0.0011]
[1772459849763,3.05738931,1927.2,1926.8,0.0011]
[1772459850022,1.76017055,1927.1,1926.5,0.0011]
[1772459850298,1.76017055,1926.9,1925.9,1.70536167]
[1772459850519,1.76017055,1926.9,1925.9,3.00344488]
[1772459850657,1.76017055,1926.9,1926.2,3.00325016]
[1772459851608,1.76017055,1926.9,1926.2,0.0011]
[1772459853091,1.76017055,1926.7,1926.2,0.0011]
[1772459855270,1.76017055,1926.5,1926.2,0.0011]
[1772459857609,1.29775747,1926.4,1926.2,0.0011]
[1772459859167,3.05792802,1926.4,1926.2,0.0011]
[1772459860183,1.29775747,1926.4,1926.3,0.0011]
[1772459860603,3.05792802,1926.4,1926.3,0.0011]
[1772459860974,1.29773334,1926.5,1926.3,0.0011]
[1772459861174,3.05790389,1926.5,1926.3,0.0011]
[1772459863095,5.18978935,1927.6,1926.6,1.52244911]
[1772459863096,0.001,1927.6,1926.6,1.52244911]
[1772459863425,0.002,1927.6,1926.8,1.52244911]
[1772459863595,1.76117055,1927.5,1926.8,1.52244911]
[1772459865012,1.76117055,1927.5,1926.9,1.29742072]
[1772459866195,1.76117055,1927.5,1927.0,1.6963071]
[1772459866196,0.001,1927.5,1927.0,1.6963071]
[1772459867122,0.001,1927.6,1927.2,1.6903792]
[1772459867298,0.002,1927.6,1927.1,1.29728607]
[1772459869721,0.002,1927.6,1927.1,2.97886685]
[1772459872014,0.002,1927.6,1927.1,2.97996685]
[1772459872215,0.001,1927.5,1927.1,2.97996685]
[1772459872523,0.001,1927.5,1927.1,2.87996685]
[1772459874242,0.001,1927.5,1927.1,1.19838607]
[1772459874539,0.001,1927.4,1927.2,1.67555265]
[1772459875116,0.001,1927.4,1927.1,1.19838607]
[1772459877013,0.001,1927.5,1927.2,1.67359346]
[1772459877330,1.74250674,1927.9,1927.2,1.67259346]
[1772459878154,0.001,1927.9,1927.2,1.67259346]
[1772459878363,0.001,1927.9,1927.4,1.67088727]
[1772459880245,0.001,1928.4,1927.6,1.79459343]
[1772459880871,1.74250674,1928.4,1927.6,1.79459343]
[1772459881475,1.74150674,1928.3,1927.6,1.79459343]
[1772459881657,1.74150674,1928.3,1927.5,1.29701686]
[1772459881973,1.74150674,1928.3,1927.5,3.09161029]
[1772459882378,1.29742287,1928.4,1927.5,3.09161029]
[1772459882379,3.03805274,1928.2,1927.5,3.09161029]
[1772459883271,1.296546,1928.2,1927.5,3.09161029]
[1772459883573,1.74150674,1928.1,1927.5,3.09161029]
[1772459884573,3.03798648,1928.3,1927.6,1.79459343]
[1772459884753,3.03898648,1928.3,1927.6,1.79459343]
[1772459885145,1.74250674,1928.3,1927.6,1.79459343]
[1772459886366,1.74250674,1928.3,1927.7,1.29688229]
[1772459886548,1.74250674,1928.3,1927.7,3.09147572]
[1772459887062,1.74250674,1928.3,1927.8,1.79459343]
[1772459888355,1.74150674,1928.2,1927.6,5.18752917]
[1772459888567,1.74150674,1928.1,1927.6,6.9821226]
[1772459892149,1.74150674,1928.1,1927.6,1.79459343]
[1772459892487,1.74150674,1928.0,1927.5,1.29701541]
[1772459893003,1.29674775,1927.9,1927.4,3.09162596]
[1772459893165,3.03825449,1927.9,1927.4,3.09162596]
[1772459893368,1.74150674,1927.9,1927.4,3.09162596]
[1772459894194,1.74150674,1927.9,1927.4,1.29703253]
[1772459895393,1.74150674,1927.9,1927.4,1.69304035]
[1772459896412,3.03828459,1927.9,1927.6,0.0011]
[1772459896695,1.74150674,1927.9,1927.6,0.0011]
[1772459897292,5.18627958,1928.2,1927.6,1.29804957]
[1772459897293,1.894,1928.0,1927.6,1.29804957]
[1772459899496,4.88647374,1928.0,1927.6,0.0011]
[1772459899699,4.88647374,1928.0,1927.5,0.0011]
[1772459899700,1.69579001,1927.9,1927.5,0.0011]
[1772459901386,1.69579001,1927.7,1927.5,0.0011]
[1772459901694,1.69579001,1927.7,1927.3,0.0011]
[1772459903508,1.69579001,1927.5,1927.3,0.0011]
[1772459905309,1.895,1927.6,1927.3,0.0011]
[1772459905511,3.59279001,1927.9,1927.4,3.01551093]
[1772459906398,4.88953804,1927.9,1927.4,3.01551093]
[1772459907710,3.59279001,1927.9,1927.4,3.01551093]
[1772459908438,3.59279001,1927.9,1927.5,1.71842678]
[1772459908439,1.897,1927.9,1927.5,1.71842678]
[1772459908640,1.897,1928.0,1927.5,1.71842678]
[1772459908841,0.001,1927.8,1927.5,1.71842678]
[1772459909244,0.001,1927.8,1927.4,1.29818415]
[1772459910210,0.001,1927.8,1927.4,3.01661093]
[1772459910655,1.69679001,1927.8,1927.4,1.71952678]
[1772459910944,1.69679001,1927.8,1927.4,0.0011]
[1772459911352,0.001,1927.8,1927.4,1.71952678]
[1772459911998,0.001,1927.8,1927.6,1.71842678]
[1772459912372,3.59279001,1928.2,1927.6,1.71842678]
[1772459912674,0.001,1928.3,1927.6,1.71842678]
[1772459914255,0.001,1928.3,1927.8,1.71842678]
[1772459914449,1.69679001,1928.3,1927.7,1.29688229]
[1772459914650,1.69679001,1928.3,1927.7,3.01530907]
[1772459914844,0.001,1928.3,1927.8,1.71842678]
[1772459915941,1.69679001,1928.3,1927.8,1.71842678]
[1772459917060,0.001,1928.3,1928.0,1.71842678]
[1772459917465,0.001,1928.4,1928.0,1.71842678]
[1772459918443,1.893,1928.8,1928.0,1.71842678]
[1772459918645,1.69579001,1928.9,1928.0,1.71842678]
[1772459918948,0.00153886,1929.0,1928.2,1.71842678]
[1772459919149,0.00153886,1929.0,1928.4,1.71842678]
[1772459920560,0.001,1928.9,1928.4,1.71842678]
[1772459921277,0.001,1928.9,1928.6,1.71842678]
[1772459921655,0.001,1929.1,1928.7,1.71842678]
[1772459922264,1.69679001,1929.1,1928.5,3.01477108]
[1772459922467,0.001,1929.1,1928.6,1.71842678]
[1772459923282,1.69579001,1929.5,1928.8,1.71842678]
[1772459924154,1.69579001,1929.4,1928.8,1.71842678]
[1772459925359,1.69679001,1929.6,1928.9,3.01450226]
[1772459925571,1.69679001,1929.6,1929.0,1.71842678]
[1772459927684,1.69679001,1929.6,1929.1,1.29594111]
[1772459928170,0.001,1929.6,1929.1,2.97001163]
[1772459928368,1.79073666,1929.6,1929.1,1.29594111]
[1772459930482,1.79073666,1929.6,1929.0,1.67407052]
[1772459930683,1.78973666,1929.5,1928.9,5.18419373]
[1772459931755,1.78973666,1929.5,1929.0,1.67407052]
[1772459932284,1.78973666,1929.5,1928.9,5.18419373]
[1772459932465,1.78973666,1929.5,1929.1,0.0011]
[1772459932666,1.79073666,1929.5,1929.1,0.0011]
[1772459933368,1.78973666,1929.4,1929.1,0.0011]
[1772459934456,1.78973666,1929.3,1929.0,0.0011]
[1772459936183,1.78973666,1929.1,1928.8,0.0011]
[1772459936601,1.78973666,1928.9,1928.8,0.0011]
[1772459937096,1.78973666,1928.9,1928.3,1.29643329]
[1772459938462,1.78973666,1928.9,1928.1,1.29661324]
[1772459938660,1.78973666,1928.7,1928.0,0.00153886]
[1772459938985,1.78973666,1928.6,1928.0,0.00153886]
[1772459941002,1.78973666,1928.5,1928.0,0.00153886]
[1772459941162,1.78973666,1929.1,1928.2,1.67407052]
[1772459942996,4.96656555,1929.3,1928.4,1.67407052]
[1772459943203,3.67073666,1929.3,1928.4,1.67407052]
[1772459943360,1.79073666,1929.5,1928.4,1.67407052]
[1772459943697,1.79073666,1929.5,1928.6,1.67407052]
[1772459943895,0.001,1929.5,1928.8,1.67407052]
[1772459945234,0.001,1929.6,1929.0,1.67407052]
[1772459945367,0.001,1929.6,1929.1,1.67407052]
[1772459945989,0.001,1929.5,1929.1,1.67407052]
[1772459946211,0.00153886,1930.0,1929.1,1.67407052]
[1772459946414,1.29691392,1930.0,1929.1,1.67407052]
[1772459946573,1.78973666,1929.9,1929.1,1.67407052]
[1772459947372,1.78973666,1929.9,1929.3,1.67407052]
[1772459948502,1.78973666,1929.9,1929.2,1.29587393]
[1772459948877,1.78973666,1929.9,1929.2,2.96994445]
[1772459949603,1.78973666,1929.8,1929.2,2.96994445]
[1772459949797,1.79127552,1930.0,1929.3,1.67407052]
[1772459950001,4.96261428,1930.0,1929.3,1.67407052]
[1772459950172,3.66727552,1930.0,1929.3,1.67407052]
[1772459951705,1.78973666,1929.9,1929.4,1.2957396]
[1772459952674,1.78973666,1929.9,1929.0,1.29600829]
[1772459953014,1.78973666,1929.9,1928.9,1.29602321]
[1772459953321,1.78973666,1929.4,1928.4,1.29638767]
[1772459953610,1.82658086,1929.2,1928.4,1.29638767]
[1772459953784,3.12252197,1929.1,1928.4,1.29638767]
[1772459953971,1.82658086,1929.4,1928.5,1.71965472]
[1772459954174,4.99634677,1929.4,1928.5,1.71965472]
[1772459955876,3.70058086,1929.4,1928.5,1.71965472]
[1772459956075,3.70058086,1929.4,1928.7,1.71965472]
[1772459956505,4.9963435,1929.4,1928.7,1.71965472]
[1772459957002,1.82658086,1929.3,1928.6,1.29627709]
[1772459958109,3.12339711,1929.3,1928.6,1.29627709]
[1772459958809,3.12339711,1929.3,1928.6,3.01325831]
[1772459959008,1.8460363,1929.2,1928.4,5.18552004]
[1772459959215,1.8460363,1929.2,1928.5,1.71698122]
[1772459960710,1.8460363,1929.2,1928.6,1.29627709]
[1772459960711,3.14195075,1929.2,1928.6,1.29627709]
[1772459961208,1.8460363,1929.1,1928.6,1.29627709]
[1772459962582,1.8460363,1929.1,1928.6,3.01325831]
[1772459962782,3.14288686,1929.3,1928.6,3.01325831]
[1772459962983,1.8470363,1929.3,1928.6,3.01325831]
[1772459963207,1.8470363,1929.3,1928.7,1.71698122]
[1772459964813,1.8470363,1929.3,1928.8,1.29614267]
[1772459965230,1.8460363,1929.2,1928.7,1.29616157]
[1772459966130,0.001,1929.3,1928.7,3.01314279]
[1772459967602,0.001,1929.3,1928.8,1.71698122]
[1772459968513,1.8470363,1929.3,1928.7,1.29616157]
[1772459968723,0.001,1929.3,1928.8,1.71698122]
[1772459969430,0.001,1929.3,1928.9,1.29607548]
[1772459970196,0.001,1929.3,1929.0,1.71698122]
[1772459972112,0.001,1929.3,1929.1,1.29594111]
[1772459972915,0.001,1929.3,1929.1,3.01292233]
[1772459973909,0.001,1929.3,1929.2,1.71698122]
[1772459974243,0.001,1929.3,1929.2,3.01285515]
[1772459974750,1.8460363,1929.7,1929.2,3.01285515]
[1772459975099,1.8460363,1929.9,1929.3,1.71698122]
[1772459975636,5.00793286,1930.0,1929.3,1.71698122]
[1772459975841,0.00153886,1930.0,1929.3,1.71698122]
[1772459976013,0.00153886,1930.0,1929.5,1.71698122]
[1772459976333,0.00153886,1930.0,1929.6,3.01258652]
[1772459976727,0.00153886,1930.0,1929.7,1.71698122]
[1772459977033,0.00153886,1930.0,1929.6,3.01258652]
[1772459979442,1.84757516,1930.0,1929.6,1.2956053]
[1772459979749,1.84757516,1930.0,1929.4,1.71698122]
[1772459980051,1.84757516,1930.0,1929.4,1.29569999]
[1772459980341,1.84757516,1930.0,1929.3,6.89996237]
[1772459980708,1.84757516,1930.0,1929.4,1.71698122]
[1772459981042,0.00153886,1930.0,1929.4,1.71698122]
[1772459982418,0.00153886,1930.0,1929.6,1.71698122]
[1772459983621,0.001,1929.9,1929.6,1.71698122]
[1772459984645,0.001,1929.9,1929.7,1.29553816]
[1772459985411,0.00153886,1930.0,1929.8,1.71698122]
[1772459985607,1.8460363,1930.4,1929.8,1.71698122]
[1772459985831,1.8460363,1930.3,1929.8,1.71698122]
[1772459987356,1.8460363,1930.3,1929.9,1.2954039]
[1772459988059,1.73045502,1930.2,1929.3,1.83241369]
[1772459988357,1.73045502,1930.2,1929.3,1.29580676]
[1772459988761,1.73045502,1930.2,1929.4,1.83241369]
[1772459989520,1.73045502,1930.0,1929.5,1.29567245]
[1772459989720,3.58745502,1930.0,1929.5,1.29567245]
[1772459991353,3.58745502,1930.0,1929.4,3.12811343]
[1772459992153,4.88284041,1930.0,1929.4,3.12811343]
[1772459992364,4.88284041,1930.0,1929.5,1.83241369]
[1772459992567,1.73045502,1929.7,1929.1,0.0011]
[1772459992864,1.73045502,1929.7,1928.8,0.0011]
[1772459993032,1.73045502,1929.4,1928.8,0.0011]
[1772459993222,1.73045502,1929.2,1928.8,0.0011]
[1772459993428,3.58745502,1929.1,1928.8,0.0011]
[1772459995334,1.73045502,1929.1,1928.8,0.0011]
[1772459995538,3.58645502,1929.6,1928.8,1.83351369]
[1772459995761,1.73045502,1929.5,1928.8,1.83351369]
[1772459996361,1.73045502,1929.5,1928.9,0.0011]
[1772459997868,1.73045502,1929.5,1928.9,1.29717548]
[1772459997869,1.2957396,1929.4,1928.9,1.29717548]
[1772459998241,3.02616715,1929.5,1928.9,3.12958917]
[1772459998850,3.02612995,1929.5,1928.9,3.12958917]
[1772459999565,1.73045502,1929.4,1928.9,0.0011]
[1772460000345,3.02626178,1929.3,1928.9,0.0011]
[1772460000760,1.73045502,1929.2,1928.9,0.0011]
[1772460000964,1.73045502,1929.0,1928.6,0.0011]
[1772460001137,1.73045502,1928.6,1928.3,0.0022]
[1772460001336,1.857,1928.5,1928.3,0.0022]
[1772460002170,1.73045502,1928.4,1928.0,1.29931443]
[1772460002354,3.02688405,1928.4,1928.0,0.00263886]
[1772460002661,3.15242903,1928.4,1928.0,0.00263886]
[1772460002979,3.58645502,1928.4,1928.0,0.00263886]
[1772460003162,1.856,1929.1,1928.2,1.83241369]
[1772460003670,3.58645502,1929.1,1928.2,1.83241369]
[1772460004040,1.856,1929.1,1928.2,1.83241369]
[1772460004437,1.856,1929.1,1928.4,1.83241369]
[1772460004869,1.856,1929.6,1928.5,1.83241369]
[1772460005165,1.856,1929.6,1928.6,1.83241369]
[1772460005949,3.58645502,1929.6,1928.6,1.83241369]
[1772460006968,3.02612747,1929.5,1928.7,3.12862357]
[1772460007580,1.73045502,1929.4,1928.7,1.29620988]
[1772460007766,1.73045502,1929.4,1928.6,1.29622997]
[1772460008964,1.29580676,1929.3,1928.4,1.29641153]
[1772460009154,1.70311877,1929.2,1928.4,1.29641153]
[1772460009354,1.854,1929.1,1928.4,1.29641153]
[1772460009876,1.70311877,1928.8,1928.2,0.0011]
[1772460011153,1.70311877,1928.6,1928.2,0.0011]
[1772460011358,1.853,1928.5,1928.2,0.0011]
[1772460013372,1.29641153,1928.4,1928.2,0.0011]
[1772460017678,3.87,1928.8,1928.2,0.0011]
[1772460017882,1.859,1928.9,1928.2,0.0011]
[1772460018084,3.15507796,1928.9,1928.2,0.0011]
[1772460018786,1.859,1928.9,1928.2,0.0011]
[1772460019379,3.15507862,1928.9,1928.2,0.0011]
[1772460019583,1.859,1928.9,1928.2,0.0011]
[1772460019885,1.86,1929.1,1928.3,1.63768711]
[1772460020177,1.86,1929.2,1928.5,1.63768711]
[1772460021954,3.03714514,1929.1,1928.5,2.93397573]
[1772460022173,3.03714514,1929.1,1928.5,1.63768711]
[1772460022353,3.03714514,1929.1,1928.3,5.18689236]
[1772460022555,1.74120403,1929.0,1928.3,1.29752582]
[1772460023372,1.74120403,1929.0,1928.3,1.29757457]
[1772460024190,3.03727951,1928.9,1928.3,0.0011]
[1772460024359,3.60720403,1928.8,1928.3,0.0011]
[1772460025060,1.74120403,1928.7,1928.3,0.0011]
[1772460026390,1.74120403,1928.5,1928.2,0.0011]
[1772460026580,1.868,1928.4,1928.2,0.0011]
[1772460028592,3.1644569,1928.4,1928.2,0.0011]
[1772460028888,4.90566093,1928.4,1928.2,0.0011]
[1772460029476,1.74120403,1928.3,1928.0,0.00263886]
[1772460030091,3.1644569,1928.4,1928.0,0.00263886]
[1772460031490,1.74120403,1928.3,1928.0,0.00263886]
[1772460032569,1.296546,1928.2,1928.0,0.00263886]
[1772460032892,3.03775003,1928.2,1928.0,0.00263886]
[1772460033394,3.03775003,1928.2,1928.1,0.0011]
[1772460033794,1.885,1928.2,1928.1,0.0011]
[1772460034294,1.29752969,1928.3,1928.1,1.63878711]
[1772460034295,0.001,1928.3,1928.1,1.63878711]
[1772460034667,0.001,1928.3,1928.1,0.0011]
[1772460034987,1.888,1928.4,1928.1,1.63878711]
[1772460035315,1.889,1928.4,1928.1,2.93539755]
[1772460035488,1.889,1928.4,1928.1,2.93539696]
[1772460036064,1.889,1928.4,1928.1,1.63878711]
[1772460037289,1.889,1928.4,1928.1,2.93539137]
[1772460037493,1.892,1928.7,1928.2,1.63768711]
[1772460037695,76.22868572,1928.9,1928.3,1.63768711]
[1772460037696,78.12068572,1928.9,1928.3,1.63768711]
[1772460039105,79.41677224,1928.9,1928.3,2.93410151]
[1772460039609,79.41677224,1928.9,1928.1,0.0011]
[1772460039610,81.15797627,1928.9,1928.1,2.9353462]
[1772460039980,1.74120403,1928.8,1928.1,2.9353462]
[1772460040695,1.74120403,1928.8,1928.1,0.0011]
[1772460040904,1.74120403,1928.8,1928.1,1.2977113]
[1772460041789,1.29620988,1928.7,1928.1,0.0011]
[1772460041983,3.66720403,1928.6,1928.1,0.0011]
[1772460042325,1.927,1928.8,1928.2,1.63768711]
[1772460042519,1.928,1928.7,1928.2,1.63768711]
[1772460042729,92.5139049,1928.4,1928.2,1.63768711]
[1772460043016,72.55084031,1928.4,1928.2,1.63768711]
[1772460043224,11.70489859,1928.4,1928.2,1.63768711]